fUST/lending_fUST_20250424
["ID","MTS","AMOUNT","RATE_DAILY","PERIOD"]
[358830547,1745483441136,-500.0,0.00019178,2]
[358830548,1745483441146,-500.0,0.00019178,2]
[358830549,1745483441156,-500.0,0.00019178,2]
[358830550,1745483441166,-500.0,0.00019178,2]
[358830551,1745483441176,-500.0,0.00019178,2]
[358830552,1745483441185,-486.52141878,0.00019178,2]
[358830553,1745483441195,-521.38908775,0.00019178,2]
[358830554,1745483441204,-334.73014194,0.00019178,2]
[358830555,1745483441213,-500.0,0.00019178,2]
[358830556,1745483441229,-500.0,0.00019178,2]
[358830557,1745483441239,-518.16171738,0.00019178,2]
[358830558,1745483441248,-500.0,0.00019178,2]
[358830559,1745483441258,-546.46,0.00019178,2]
[358830560,1745483441268,-500.0,0.00019178,2]
[358830561,1745483441278,-596.64158309,0.00019178,2]
[358830562,1745483441288,-500.34648851,0.00019178,2]
[358830563,1745483441298,-500.0,0.00019178,2]
[358830564,1745483441308,-500.0,0.00019178,2]
[358830565,1745483441317,-500.0,0.00019178,2]
[358830566,1745483441326,-500.0,0.00019178,2]
[358830567,1745483441336,-513.52061192,0.00019178,2]
[358830568,1745483441346,-500.0,0.00019178,2]
[358830569,1745483441355,-507.77,0.00019178,2]
[358830570,1745483441365,-303.61906979,0.00019178,2]
[358830571,1745483441374,-500.0,0.00019178,2]
[358830572,1745483441384,-500.0,0.00019178,2]
[358830573,1745483441394,-500.0,0.00019178,2]
[358830574,1745483441404,-500.0,0.00019178,2]
[358830575,1745483441413,-500.0,0.00019178,2]
[358830576,1745483441423,-500.0,0.00019178,2]
[358830577,1745483441433,-1181.33,0.00019178,2]
[358830578,1745483441442,-500.0,0.00019178,2]
[358830579,1745483441452,-500.0,0.00019178,2]
[358830580,1745483441462,-500.0,0.00019178,2]
[358830581,1745483441476,-500.0,0.00019178,2]
[358830582,1745483441486,-500.0,0.00019178,2]
[358830583,1745483441495,-500.0,0.00019178,2]
[358830584,1745483441504,-500.0,0.00019178,2]
[358830585,1745483441514,-893.95,0.00019178,2]
[358830586,1745483441523,-500.0,0.00019178,2]
[358830587,1745483441533,-500.0,0.00019178,2]
[358830588,1745483441543,-1212.39,0.00019178,2]
[358830589,1745483441553,-500.0,0.00019178,2]
[358830590,1745483441562,-500.0,0.00019178,2]
[358830591,1745483441572,-500.0,0.00019178,2]
[358830592,1745483441581,-1418.19,0.00019178,2]
[358830593,1745483441591,-500.0,0.00019178,2]
[358830594,1745483441600,-893.46,0.00019178,2]
[358830595,1745483441610,-500.0,0.00019178,2]
[358830596,1745483441619,-500.0,0.00019178,2]
[358830597,1745483441628,-500.0,0.00019178,2]
[358830598,1745483441642,-1960.97,0.00019178,2]
[358830599,1745483441651,-979.95,0.00019178,2]
[358830600,1745483441661,-500.0,0.00019178,2]
[358830601,1745483441670,-859.33,0.00019178,2]
[358830602,1745483441680,-500.0,0.00019178,2]
[358830603,1745483441689,-557.44,0.00019178,2]
[358830604,1745483441698,-500.0,0.00019178,2]
[358830605,1745483441708,-500.0,0.00019178,2]
[358830606,1745483441722,-500.0,0.00019178,2]
[358830607,1745483441731,-1042.63,0.00019178,2]
[358830608,1745483441741,-4560.15,0.00019178,2]
[358830609,1745483441752,-500.0,0.00019178,2]
[358830610,1745483441761,-500.0,0.00019178,2]
[358830611,1745483441771,-500.0,0.00019178,2]
[358830612,1745483441784,-2204.78,0.00019178,2]
[358830613,1745483441795,-1000.0,0.00019178,2]
[358830614,1745483441804,-268.69791272,0.00019178,2]
[358830615,1745483441813,-2909.2,0.00019178,2]
[358830616,1745483441823,-2909.2,0.00019178,2]
[358830617,1745483441833,-2909.2,0.00019178,2]
[358830618,1745483441842,-2909.2,0.00019178,2]
[358830619,1745483441851,-502.67361764,0.00019178,2]
[358830620,1745483441862,-2909.2,0.00019178,2]
[358830621,1745483441872,-2909.2,0.00019178,2]
[358830622,1745483441882,-500.0,0.00019178,2]
[358830623,1745483441892,-2909.2,0.00019178,2]
[358830624,1745483441901,-2909.2,0.00019178,2]
[358830625,1745483441911,-730.63,0.00019178,2]
[358830626,1745483441921,-2909.2,0.00019178,2]
[358830627,1745483442060,-2909.2,0.00019178,2]
[358830628,1745483442071,-2909.2,0.00019178,2]
[358830629,1745483442080,-2909.2,0.00019178,2]
[358830630,1745483442090,-2909.2,0.00019178,2]
[358830631,1745483442100,-2909.2,0.00019178,2]
[358830632,1745483442110,-2909.2,0.00019178,2]
[358830633,1745483442120,-2909.2,0.00019178,2]
[358830634,1745483442131,-2909.2,0.00019178,2]
[358830635,1745483442141,-500.0,0.00019178,2]
[358830636,1745483442152,-506.26756306,0.00019178,2]
[358830637,1745483442163,-2736.29,0.00019178,2]
[358830638,1745483442173,-666.99,0.00019178,2]
[358830639,1745483442183,-500.0,0.00019178,2]
[358830640,1745483442193,-500.0,0.00019178,2]
[358830641,1745483442203,-996.19,0.00019178,2]
[358830642,1745483442213,-500.0,0.00019178,2]
[358830643,1745483442227,-500.0,0.00019178,2]
[358830644,1745483442238,-749.64,0.00019178,2]
[358830645,1745483442248,-500.0,0.00019178,2]
[358830646,1745483442259,-1394.53,0.00019178,2]
[358830647,1745483442269,-500.0,0.00019178,2]
[358830648,1745483442279,-497.53616167,0.00019178,2]
[358830649,1745483442289,-500.0,0.00019178,2]
[358830650,1745483442298,-3186.96,0.00019178,2]
[358830651,1745483442308,-500.0,0.00019178,2]
[358830652,1745483442318,-500.0,0.00019178,2]
[358830653,1745483442327,-500.0,0.00019178,2]
[358830654,1745483442337,-500.0,0.00019178,2]
[358830655,1745483442346,-500.0,0.00019178,2]
[358830656,1745483442357,-500.0,0.00019178,2]
[358830657,1745483442366,-1898.1,0.00019178,2]
[358830658,1745483442376,-500.0,0.00019178,2]
[358830659,1745483442385,-500.0,0.00019178,2]
[358830660,1745483442395,-1289.31,0.00019178,2]
[358830661,1745483442405,-953.7,0.00019178,2]
[358830662,1745483442414,-500.0,0.00019178,2]
[358830663,1745483442423,-500.0,0.00019178,2]
[358830664,1745483442433,-500.0,0.00019178,2]
[358830665,1745483442442,-500.0,0.00019178,2]
[358830666,1745483442452,-867.14,0.00019178,2]
[358830667,1745483442461,-500.0,0.00019178,2]
[358830668,1745483442475,-500.0,0.00019178,2]
[358830669,1745483442485,-1192.29,0.00019178,2]
[358830670,1745483442494,-500.0,0.00019178,2]
[358830671,1745483442503,-500.0,0.00019178,2]
[358830672,1745483442513,-2595.31,0.00019178,2]
[358830673,1745483442522,-655.5,0.00019178,2]
[358830674,1745483442533,-3776.64,0.00019178,2]
[358830675,1745483442542,-500.0,0.00019178,2]
[358830676,1745483442552,-2043.13,0.00019178,2]
[358830677,1745483442561,-500.0,0.00019178,2]
[358830678,1745483442571,-500.0,0.00019178,2]
[358830679,1745483442581,-500.0,0.00019178,2]
[358830680,1745483442591,-500.0,0.00019178,2]
[358830681,1745483442600,-500.0,0.00019178,2]
[358830682,1745483442610,-475.15000393,0.00019178,2]
[358830683,1745483442620,-656.77,0.00019178,2]
[358830684,1745483442630,-932.58,0.00019178,2]
[358830685,1745483442640,-850.52,0.00019178,2]
[358830686,1745483442650,-500.0,0.00019178,2]
[358830687,1745483442660,-500.0,0.00019178,2]
[358830688,1745483442670,-682.98,0.00019178,2]
[358830689,1745483442679,-500.0,0.00019178,2]
[358830690,1745483442689,-528.97,0.00019178,2]
[358830691,1745483442698,-500.0,0.00019178,2]
[358830692,1745483442708,-500.0,0.00019178,2]
[358830693,1745483442721,-500.0,0.00019178,2]
[358830694,1745483442731,-4754.28,0.00019178,2]
[358830695,1745483442741,-5758.5,0.00019178,2]
[358830696,1745483442753,-500.0,0.00019178,2]
[358830697,1745483442763,-200.0,0.00019178,10]
[358830698,1745483442773,-313.041671,0.00019178,10]
[358830699,1745483442785,-5904.43,0.00019178,2]
[358830700,1745483442796,-500.0,0.00019178,2]
[358830701,1745483442806,-4323.01,0.00019178,2]
[358830702,1745483442816,-175.30892102,0.00019178,2]
[358830703,1745483442827,-500.0,0.00019178,2]
[358830704,1745483442836,-504.48390921,0.00019178,2]
[358830705,1745483442846,-1824.6,0.00019178,2]
[358830706,1745483442856,-500.0,0.00019178,2]
[358830707,1745483442867,-500.0,0.00019178,2]
[358830708,1745483442877,-1211.68,0.00019178,2]
[358830709,1745483442887,-500.0,0.00019178,2]
[358830710,1745483442897,-500.0,0.00019178,2]
[358830711,1745483442906,-577.69,0.00019178,2]
[358830712,1745483442916,-698.67,0.00019178,2]
[358830713,1745483442926,-1107.05,0.00019178,2]
[358830714,1745483442937,-500.0,0.00019178,2]
[358830715,1745483442947,-726.63,0.00019178,2]
[358830716,1745483442956,-500.0,0.00019178,2]
[358830717,1745483442967,-542.82929749,0.00019178,2]
[358830718,1745483442981,-703.83,0.00019178,2]
[358830719,1745483442991,-500.0,0.00019178,2]
[358830720,1745483443001,-500.0,0.00019178,2]
[358830721,1745483443011,-500.0,0.00019178,2]
[358830722,1745483443021,-4263.37,0.00019178,2]
[358830723,1745483443031,-771.65,0.00019178,2]
[358830724,1745483443042,-874.36,0.00019178,2]
[358830725,1745483443052,-500.0,0.00019178,2]
[358830726,1745483443062,-683.28,0.00019178,2]
[358830727,1745483443073,-500.0,0.00019178,2]
[358830728,1745483443083,-500.0,0.00019178,2]
[358830729,1745483443093,-500.0,0.00019178,2]
[358830730,1745483443103,-500.0,0.00019178,2]
[358830731,1745483443113,-508.92152317,0.00019178,2]
[358830732,1745483443123,-642.36,0.00019178,2]
[358830733,1745483443133,-870.35,0.00019178,2]
[358830734,1745483443143,-500.0,0.00019178,2]
[358830735,1745483443153,-500.0,0.00019178,2]
[358830736,1745483443163,-5547.4,0.00019178,2]
[358830737,1745483443173,-500.0,0.00019178,2]
[358830738,1745483443182,-500.0,0.00019178,2]
[358830741,1745483443192,-848.12,0.00019178,2]
[358830744,1745483443201,-500.0,0.00019178,2]
[358830746,1745483443210,-560.86,0.00019178,2]
[358830749,1745483443223,-500.0,0.00019178,2]
[358830752,1745483443233,-500.0,0.00019178,2]
[358830756,1745483443242,-500.0,0.00019178,2]
[358830758,1745483443251,-500.0,0.00019178,2]
[358830761,1745483443260,-500.0,0.00019178,2]
[358830764,1745483443269,-500.0,0.00019178,2]
[358830767,1745483443278,-194.89580051,0.00019178,2]
[358830770,1745483443288,-651.56,0.00019178,2]
[358830772,1745483443297,-5639.71,0.00019178,2]
[358830774,1745483443306,-500.0,0.00019178,2]
[358830776,1745483443315,-500.0,0.00019178,2]
[358830778,1745483443325,-1611.13,0.00019178,2]
[358830780,1745483443334,-500.0,0.00019178,2]
[358830782,1745483443347,-300.0,0.00019178,2]
[358830784,1745483443356,-232.45573296,0.00019284,2]
[358830786,1745483443366,-2909.2,0.0001945,2]
[358830788,1745483443376,-2909.2,0.00019451,2]
[358830790,1745483443387,-2909.2,0.00019451,2]
[358830792,1745483443397,-2909.2,0.00019451,2]
[358830794,1745483443407,-2909.2,0.00019451,2]
[358830796,1745483443417,-2909.2,0.00019451,2]
[358830798,1745483443427,-2909.22874831,0.00019451,2]
[358830800,1745483443437,-151.0,0.00019452,2]
[358830802,1745483443447,-151.0,0.00019452,2]
[358830804,1745483443456,-500.0,0.00019452,2]
[358830806,1745483443465,-500.0,0.00019452,2]
[358830808,1745483443479,-1027.79,0.00019452,2]
[358830810,1745483443489,-500.0,0.00019452,2]
[358830812,1745483443498,-500.0,0.00019452,2]
[358830814,1745483443508,-500.0,0.00019452,2]
[358830817,1745483443517,-500.0,0.00019452,2]
[358830818,1745483443527,-863.79,0.00019452,2]
[358830819,1745483443536,-500.0,0.00019452,2]
[358830820,1745483443546,-500.0,0.00019452,2]
[358830821,1745483443556,-500.0,0.00019452,2]
[358830823,1745483443565,-500.0,0.00019452,2]
[358830824,1745483443574,-500.0,0.00019452,2]
[358830825,1745483443583,-500.0,0.00019452,2]
[358830826,1745483443593,-500.0,0.00019452,2]
[358830827,1745483443602,-500.0,0.00019452,2]
[358830828,1745483443612,-537.38,0.00019452,2]
[358830829,1745483443621,-500.0,0.00019452,2]
[358830830,1745483443630,-688.39,0.00019452,2]
[358830831,1745483443639,-500.0,0.00019452,2]
[358830832,1745483443650,-500.0,0.00019452,2]
[358830833,1745483443659,-500.0,0.00019452,2]
[358830834,1745483443670,-500.0,0.00019452,2]
[358830836,1745483443679,-500.0,0.00019452,2]
[358830838,1745483443689,-500.0,0.00019452,2]
[358830839,1745483443698,-153.88679,0.00019452,2]
[358830840,1745483443708,-152.830517,0.00019452,2]
[358830842,1745483443718,-500.0,0.00019452,2]
[358830843,1745483443731,-528.92,0.00019452,2]
[358830844,1745483443741,-500.0,0.00019452,2]
[358830845,1745483443752,-500.0,0.00019452,2]
[358830846,1745483443762,-500.0,0.00019452,2]
[358830847,1745483443771,-500.0,0.00019452,2]
[358830848,1745483443781,-500.0,0.00019452,2]
[358830849,1745483443792,-500.0,0.00019452,2]
[358830850,1745483443802,-500.0,0.00019452,2]
[358830851,1745483443812,-608.17,0.00019452,2]
[358830852,1745483443821,-500.0,0.00019452,2]
[358830853,1745483443831,-500.0,0.00019452,2]
[358830854,1745483443840,-3225.0,0.00019452,2]
[358830855,1745483443850,-500.0,0.00019452,2]
[358830856,1745483443860,-500.0,0.00019452,2]
[358830857,1745483443870,-1407.13,0.00019452,2]
[358830858,1745483443880,-622.84,0.00019452,2]
[358830859,1745483443890,-500.0,0.00019452,2]
[358830860,1745483443899,-695.55,0.00019452,2]
[358830861,1745483443908,-610.13,0.00019452,2]
[358830862,1745483443917,-150.33291475,0.00019452,2]
[358830863,1745483443927,-305.69617702,0.00019452,2]
[358830864,1745483443936,-500.0,0.00019452,2]
[358830865,1745483443946,-500.0,0.00019452,2]
[358830866,1745483443955,-621.286947,0.00019452,2]
[358830867,1745483443966,-500.0,0.00019452,2]
[358830868,1745483443979,-500.0,0.00019452,2]
[358830869,1745483443988,-500.0,0.00019452,2]
[358830870,1745483443998,-500.0,0.00019452,2]
[358830871,1745483444008,-500.0,0.00019452,2]
[358830872,1745483444018,-500.0,0.00019452,2]
[358830873,1745483444028,-500.0,0.00019452,2]
[358830874,1745483444037,-500.0,0.00019452,2]
[358830875,1745483444052,-500.0,0.00019452,2]
[358830876,1745483444068,-500.0,0.00019452,2]
[358830877,1745483444078,-503.77678552,0.00019452,2]
[358830878,1745483444088,-500.0,0.00019452,2]
[358830879,1745483444098,-500.0,0.00019452,2]
[358830880,1745483444109,-500.0,0.00019452,2]
[358830881,1745483444119,-523.41,0.00019452,2]
[358830882,1745483444129,-2725.19,0.00019452,2]
[358830883,1745483444141,-500.0,0.00019452,2]
[358830884,1745483444151,-698.74,0.00019452,2]
[358830885,1745483444162,-500.0,0.00019452,2]
[358830886,1745483444172,-1127.19,0.00019452,2]
[358830887,1745483444182,-500.0,0.00019452,2]
[358830888,1745483444192,-589.49,0.00019452,2]
[358830889,1745483444202,-500.0,0.00019452,2]
[358830890,1745483444211,-671.91,0.00019452,2]
[358830891,1745483444226,-507.28,0.00019452,2]
[358830892,1745483444237,-500.0,0.00019452,2]
[358830893,1745483444247,-500.0,0.00019452,2]
[358830894,1745483444256,-500.0,0.00019452,2]
[358830895,1745483444266,-632.73,0.00019452,2]
[358830896,1745483444276,-529.09,0.00019452,2]
[358830897,1745483444286,-500.0,0.00019452,2]
[358830898,1745483444296,-500.0,0.00019452,2]
[358830899,1745483444307,-1118.86,0.00019452,2]
[358830900,1745483444317,-500.0,0.00019452,2]
[358830901,1745483444327,-500.0,0.00019452,2]
[358830902,1745483444337,-718.27,0.00019452,2]
[358830903,1745483444348,-500.0,0.00019452,2]
[358830904,1745483444358,-500.0,0.00019452,2]
[358830905,1745483444367,-500.0,0.00019452,2]
[358830906,1745483444377,-1667.62,0.00019452,2]
[358830907,1745483444386,-500.0,0.00019452,2]
[358830908,1745483444396,-500.0,0.00019452,2]
[358830909,1745483444406,-500.0,0.00019452,2]
[358830910,1745483444416,-500.0,0.00019452,2]
[358830911,1745483444426,-500.0,0.00019452,2]
[358830912,1745483444436,-834.0,0.00019452,2]
[358830913,1745483444447,-500.0,0.00019452,2]
[358830914,1745483444458,-504.86950455,0.00019452,2]
[358830915,1745483444468,-500.0,0.00019452,2]
[358830916,1745483444485,-500.0,0.00019452,2]
[358830917,1745483444646,-628.62,0.00019452,2]
[358830918,1745483444678,-2823.18,0.00019452,2]
[358830919,1745483444688,-1101.21,0.00019452,2]
[358830920,1745483444698,-319.91978056,0.00019452,2]
[358830921,1745483444707,-500.0,0.00019452,2]
[358830922,1745483444717,-500.0,0.00019452,2]
[358830923,1745483444731,-735.21,0.00019452,2]
[358830924,1745483444741,-500.0,0.00019452,2]
[358830925,1745483444751,-500.0,0.00019452,2]
[358830926,1745483444764,-805.17,0.00019452,2]
[358830927,1745483444773,-500.0,0.00019452,2]
[358830928,1745483444782,-500.0,0.00019452,2]
[358830929,1745483444792,-500.0,0.00019452,2]
[358830930,1745483444803,-500.0,0.00019452,2]
[358830931,1745483444812,-152.770878,0.00019452,2]
[358830932,1745483444821,-500.0,0.00019452,2]
[358830933,1745483444830,-500.0,0.00019452,2]
[358830934,1745483444840,-500.0,0.00019452,2]
[358830935,1745483444849,-500.0,0.00019452,2]
[358830936,1745483444859,-660.5,0.00019452,2]
[358830937,1745483444869,-633.79,0.00019452,2]
[358830938,1745483444879,-500.0,0.00019452,2]
[358830939,1745483444889,-585.72,0.00019452,2]
[358830940,1745483444899,-500.0,0.00019452,2]
[358830941,1745483444908,-500.0,0.00019452,2]
[358830942,1745483444918,-554.61,0.00019452,2]
[358830943,1745483444927,-952.55,0.00019452,2]
[358830944,1745483444937,-835.98,0.00019452,2]
[358830945,1745483444947,-500.0,0.00019452,2]
[358830946,1745483444957,-500.0,0.00019452,2]
[358830947,1745483444966,-947.98,0.00019452,2]
[358830948,1745483444979,-504.28481624,0.00019452,2]
[358830949,1745483444989,-547.97,0.00019452,2]
[358830950,1745483444998,-160.85259476,0.00019452,2]
[358830951,1745483445007,-2382.06,0.00019452,2]
[358830952,1745483445017,-625.25,0.00019452,2]
[358830953,1745483445027,-500.0,0.00019452,2]
[358830954,1745483445038,-500.0,0.00019452,2]
[358830955,1745483445047,-500.0,0.00019452,2]
[358830956,1745483445057,-500.0,0.00019452,2]
[358830957,1745483445067,-500.0,0.00019452,2]
[358830958,1745483445077,-766.9,0.00019452,2]
[358830959,1745483445087,-500.0,0.00019452,2]
[358830960,1745483445098,-500.0,0.00019452,2]
[358830961,1745483445108,-500.0,0.00019452,2]
[358830962,1745483445118,-500.0,0.00019452,2]
[358830963,1745483445128,-500.0,0.00019452,2]
[358830964,1745483445137,-500.0,0.00019452,2]
[358830965,1745483445147,-500.0,0.00019452,2]
[358830966,1745483445156,-519.24354642,0.00019452,2]
[358830967,1745483445166,-546.46,0.00019452,2]
[358830968,1745483445176,-500.0,0.00019452,2]
[358830969,1745483445185,-500.0,0.00019452,2]
[358830970,1745483445195,-500.0,0.00019452,2]
[358830971,1745483445204,-500.0,0.00019452,2]
[358830972,1745483445214,-500.0,0.00019452,2]
[358830973,1745483445229,-500.0,0.00019452,2]
[358830974,1745483445239,-507.77,0.00019452,2]
[358830975,1745483445248,-500.0,0.00019452,2]
[358830976,1745483445258,-500.0,0.00019452,2]
[358830977,1745483445267,-500.0,0.00019452,2]
[358830978,1745483445279,-500.0,0.00019452,2]
[358830979,1745483445289,-500.0,0.00019452,2]
[358830980,1745483445299,-500.0,0.00019452,2]
[358830981,1745483445308,-1181.33,0.00019452,2]
[358830982,1745483445318,-500.0,0.00019452,2]
[358830983,1745483445328,-500.0,0.00019452,2]
[358830984,1745483445337,-500.0,0.00019452,2]
[358830985,1745483445347,-500.0,0.00019452,2]
[358830986,1745483445356,-500.0,0.00019452,2]
[358830987,1745483445366,-500.0,0.00019452,2]
[358830988,1745483445375,-893.95,0.00019452,2]
[358830989,1745483445385,-500.0,0.00019452,2]
[358830990,1745483445394,-607.69,0.00019452,2]
[358830991,1745483445403,-1212.39,0.00019452,2]
[358830992,1745483445413,-500.0,0.00019452,2]
[358830993,1745483445423,-500.0,0.00019452,2]
[358830994,1745483445432,-500.0,0.00019452,2]
[358830995,1745483445442,-1418.19,0.00019452,2]
[358830996,1745483445451,-500.0,0.00019452,2]
[358830997,1745483445461,-893.46,0.00019452,2]
[358830998,1745483445474,-500.0,0.00019452,2]
[358830999,1745483445484,-500.0,0.00019452,2]
[358831000,1745483445494,-507.67011091,0.00019452,2]
[358831001,1745483445503,-1960.97,0.00019452,2]
[358831002,1745483445513,-979.95,0.00019452,2]
[358831003,1745483445522,-500.0,0.00019452,2]
[358831004,1745483445534,-859.33,0.00019452,2]
[358831005,1745483445544,-500.0,0.00019452,2]
[358831006,1745483445554,-557.44,0.00019452,2]
[358831007,1745483445563,-500.0,0.00019452,2]
[358831008,1745483445572,-500.0,0.00019452,2]
[358831009,1745483445582,-500.0,0.00019452,2]
[358831010,1745483445592,-1042.63,0.00019452,2]
[358831011,1745483445601,-4560.15,0.00019452,2]
[358831012,1745483445611,-500.0,0.00019452,2]
[358831013,1745483445620,-500.0,0.00019452,2]
[358831014,1745483445630,-500.0,0.00019452,2]
[358831015,1745483445640,-2204.78,0.00019452,2]
[358831016,1745483445650,-1022.22863644,0.00019452,2]
[358831017,1745483445660,-151.0,0.00019452,2]
[358831018,1745483445671,-500.0,0.00019452,2]
[358831019,1745483445681,-730.63,0.00019452,2]
[358831020,1745483445692,-500.0,0.00019452,2]
[358831021,1745483445702,-2736.29,0.00019452,2]
[358831022,1745483445713,-666.99,0.00019452,2]
[358831023,1745483445726,-500.0,0.00019452,2]
[358831024,1745483445736,-500.0,0.00019452,2]
[358831025,1745483445748,-996.19,0.00019452,2]
[358831026,1745483445763,-500.0,0.00019452,2]
[358831027,1745483445773,-500.0,0.00019452,2]
[358831028,1745483445782,-749.64,0.00019452,2]
[358831029,1745483445792,-500.0,0.00019452,2]
[358831030,1745483445803,-1394.53,0.00019452,2]
[358831031,1745483445813,-500.0,0.00019452,2]
[358831032,1745483445822,-151.0,0.00019452,2]
[358831033,1745483445832,-500.0,0.00019452,2]
[358831034,1745483445843,-3186.96,0.00019452,2]
[358831035,1745483445853,-500.0,0.00019452,2]
[358831036,1745483445864,-857.740625,0.00019452,2]
[358831037,1745483445874,-151.0,0.00019452,2]
[358831038,1745483445883,-500.0,0.00019452,2]
[358831039,1745483445894,-500.0,0.00019452,2]
[358831040,1745483445904,-500.0,0.00019452,2]
[358831041,1745483445913,-857.740625,0.00019452,2]
[358831042,1745483445923,-500.0,0.00019452,2]
[358831043,1745483445932,-1898.1,0.00019452,2]
[358831044,1745483445942,-157.21524811,0.00019452,2]
[358831045,1745483445952,-1289.31,0.00019452,2]
[358831047,1745483445961,-953.7,0.00019452,2]
[358831048,1745483445974,-500.0,0.00019452,2]
[358831049,1745483445984,-500.0,0.00019452,2]
[358831050,1745483445994,-500.0,0.00019452,2]
[358831051,1745483446004,-500.0,0.00019452,2]
[358831052,1745483446014,-867.14,0.00019452,2]
[358831054,1745483446024,-500.0,0.00019452,2]
[358831055,1745483446033,-500.0,0.00019452,2]
[358831056,1745483446044,-1192.29,0.00019452,2]
[358831057,1745483446053,-500.0,0.00019452,2]
[358831058,1745483446063,-500.0,0.00019452,2]
[358831059,1745483446074,-2595.31,0.00019452,2]
[358831060,1745483446083,-655.5,0.00019452,2]
[358831061,1745483446093,-3776.64,0.00019452,2]
[358831062,1745483446103,-500.0,0.00019452,2]
[358831063,1745483446113,-2043.13,0.00019452,2]
[358831064,1745483446123,-500.0,0.00019452,2]
[358831066,1745483446133,-500.0,0.00019452,2]
[358831068,1745483446143,-500.0,0.00019452,2]
[358831070,1745483446153,-500.0,0.00019452,2]
[358831072,1745483446164,-500.0,0.00019452,2]
[358831074,1745483446175,-656.77,0.00019452,2]
[358831076,1745483446184,-932.58,0.00019452,2]
[358831077,1745483446194,-850.52,0.00019452,2]
[358831079,1745483446214,-500.0,0.00019452,2]
[358831080,1745483446228,-500.0,0.00019452,2]
[358831081,1745483446239,-682.98,0.00019452,2]
[358831082,1745483446249,-500.0,0.00019452,2]
[358831083,1745483446259,-528.97,0.00019452,2]
[358831084,1745483446270,-500.0,0.00019452,2]
[358831085,1745483446280,-500.0,0.00019452,2]
[358831086,1745483446290,-500.0,0.00019452,2]
[358831087,1745483446299,-4754.28,0.00019452,2]
[358831088,1745483446309,-5758.5,0.00019452,2]
[358831089,1745483446319,-500.0,0.00019452,2]
[358831090,1745483446329,-5904.43,0.00019452,2]
[358831091,1745483446339,-500.0,0.00019452,2]
[358831092,1745483446349,-4323.01,0.00019452,2]
[358831093,1745483446358,-8550.0,0.00019452,2]
[358831094,1745483446368,-8550.0,0.00019452,2]
[358831095,1745483446378,-500.0,0.00019452,2]
[358831096,1745483446389,-1824.6,0.00019452,2]
[358831097,1745483446398,-500.0,0.00019452,2]
[358831098,1745483446408,-500.0,0.00019452,2]
[358831099,1745483446418,-1211.68,0.00019452,2]
[358831100,1745483446428,-500.0,0.00019452,2]
[358831101,1745483446438,-500.0,0.00019452,2]
[358831102,1745483446448,-577.69,0.00019452,2]
[358831103,1745483446458,-698.67,0.00019452,2]
[358831104,1745483446469,-1107.05,0.00019452,2]